fUSD/lending_fUSD_20240803
["ID","MTS","AMOUNT","RATE_DAILY","PERIOD"]
[333991745,1722666757467,-3068.73,0.00018356,2]
[333991746,1722666757477,-1915.63,0.00018356,2]
[333991747,1722666757487,-2609.6,0.00018356,2]
[333991748,1722666757499,-500.0,0.00018356,2]
[333991749,1722666757510,-1156.97,0.00018356,2]
[333991750,1722666757521,-1837.83,0.00018356,2]
[333991751,1722666757531,-735.07,0.00018356,2]
[333991752,1722666757542,-583.63,0.00018356,2]
[333991753,1722666757552,-664.37,0.00018356,2]
[333991754,1722666757562,-2322.65,0.00018356,2]
[333991755,1722666757572,-651.05,0.00018356,2]
[333991756,1722666757583,-500.0,0.00018356,2]
[333991757,1722666757592,-1304.49,0.00018356,2]
[333991758,1722666757602,-500.0,0.00018356,2]
[333991759,1722666757611,-1780.87,0.00018356,2]
[333991760,1722666757620,-3594.13,0.00018356,2]
[333991761,1722666757630,-1004.22,0.00018356,2]
[333991762,1722666757639,-284.742637,0.00018427,2]
[333991763,1722666757649,-467.643079,0.00018427,2]
[333991764,1722666757663,-392.691139,0.00018427,2]
[333991765,1722666757673,-201.737184,0.00018427,2]
[333991766,1722666757683,-9814.464715,0.00018427,2]
[333991767,1722666757692,-29587.127974,0.00018427,2]
[333991768,1722666757703,-676.529965,0.00018427,2]
[333991769,1722666757713,-532.656803,0.00018427,2]
[333991770,1722666757723,-220.238779,0.00018427,2]
[333991771,1722666757733,-502.456116,0.00018427,2]
[333991772,1722666757744,-456.528838,0.00018427,2]
[333991773,1722666757754,-441.256191,0.00018427,2]
[333991774,1722666757763,-5619.454371,0.00018427,2]
[333991775,1722666757773,-475.552508,0.00018427,2]
[333991776,1722666757783,-272.306319,0.00018427,2]
[333991777,1722666757792,-8127.573152,0.00018427,2]
[333991778,1722666757803,-2855.804423,0.00018427,2]
[333991779,1722666757814,-11048.99179,0.00018427,2]
[333991780,1722666757825,-160.707455,0.00018427,2]
[333991781,1722666757834,-173.872857,0.00018427,2]
[333991782,1722666757844,-3000.0,0.00018463,7]
[333991783,1722666757853,-216.0,0.0001847,2]
[333991784,1722666757863,-214.0,0.0001847,2]
[333991785,1722666757872,-155.07483256,0.00018471,2]
[333991786,1722666757883,-155.06289797,0.00018471,2]
[333991787,1722666757893,-201.34640033,0.00018471,2]
[333991788,1722666757902,-155.0,0.00018471,2]
[333991789,1722666757912,-1299.3026088,0.00018499,2]
[333991790,1722666757922,-303.31429985,0.00018499,2]
[333991791,1722666757931,-256.24873551,0.000185,2]
[333991792,1722666757941,-454.19419225,0.00018529,2]
[333991793,1722666757952,-528.34125485,0.00018529,2]
[333991794,1722666757961,-162.37215006,0.00018547,2]
[333991795,1722666757971,-200.0,0.00018547,2]
[333991796,1722666758085,-150.5,0.000186,120]
[333991797,1722666758096,-152.0,0.00018605,3]
[333991798,1722666758105,-150.5,0.0001861,120]
[333991799,1722666758114,-150.5,0.0001862,120]
[333991800,1722666758124,-500.0,0.0001863,2]
[333991801,1722666758134,-500.0,0.0001863,2]
[333991802,1722666758143,-989.73,0.0001863,2]
[333991803,1722666758152,-788.91,0.0001863,2]
[333991804,1722666758161,-500.0,0.0001863,2]
[333991805,1722666758171,-500.0,0.0001863,2]
[333991806,1722666758180,-500.0,0.0001863,2]
[333991807,1722666758190,-500.0,0.0001863,2]
[333991808,1722666758199,-500.0,0.0001863,2]
[333991809,1722666758208,-500.0,0.0001863,2]
[333991810,1722666758218,-567.17,0.0001863,2]
[333991811,1722666758227,-500.0,0.0001863,2]
[333991812,1722666758237,-500.0,0.0001863,2]
[333991813,1722666758246,-500.0,0.0001863,2]
[333991814,1722666758255,-1103.75,0.0001863,2]
[333991815,1722666758265,-1066.77,0.0001863,2]
[333991816,1722666758274,-500.0,0.0001863,2]
[333991817,1722666758284,-593.51,0.0001863,2]
[333991818,1722666758293,-766.07,0.0001863,2]
[333991819,1722666758302,-758.83,0.0001863,2]
[333991820,1722666758311,-1147.83,0.0001863,2]
[333991821,1722666758320,-569.94,0.0001863,2]
[333991822,1722666758329,-500.0,0.0001863,2]
[333991823,1722666758339,-507.58000534,0.0001863,2]
[333991824,1722666758348,-500.0,0.0001863,2]
[333991825,1722666758357,-500.0,0.0001863,2]
[333991826,1722666758367,-500.0,0.0001863,2]
[333991827,1722666758376,-500.0,0.0001863,2]
[333991828,1722666758385,-500.0,0.0001863,2]
[333991829,1722666758395,-500.0,0.0001863,2]
[333991830,1722666758404,-500.0,0.0001863,2]
[333991831,1722666758413,-500.0,0.0001863,2]
[333991832,1722666758422,-800.64,0.0001863,2]
[333991833,1722666758432,-715.96,0.0001863,2]
[333991834,1722666758441,-500.0,0.0001863,2]
[333991835,1722666758451,-500.0,0.0001863,2]
[333991836,1722666758460,-500.0,0.0001863,2]
[333991837,1722666758469,-517.53,0.0001863,2]
[333991838,1722666758478,-500.0,0.0001863,2]
[333991839,1722666758489,-702.72,0.0001863,2]
[333991840,1722666758498,-500.0,0.0001863,2]
[333991841,1722666758507,-937.04,0.0001863,2]
[333991842,1722666758516,-500.0,0.0001863,2]
[333991843,1722666758525,-500.0,0.0001863,2]
[333991844,1722666758535,-500.0,0.0001863,2]
[333991845,1722666758545,-500.0,0.0001863,2]
[333991846,1722666758555,-500.0,0.0001863,2]
[333991847,1722666758565,-887.0,0.0001863,2]
[333991848,1722666758574,-500.0,0.0001863,2]
[333991849,1722666758584,-810.08,0.0001863,2]
[333991850,1722666758593,-500.0,0.0001863,2]
[333991851,1722666758603,-544.56,0.0001863,2]
[333991852,1722666758612,-603.96,0.0001863,2]
[333991853,1722666758621,-500.0,0.0001863,2]
[333991854,1722666758631,-445.01482925,0.0001863,2]
[333991855,1722666758640,-500.0,0.0001863,2]
[333991856,1722666758650,-500.0,0.0001863,2]
[333991857,1722666758663,-1120.78,0.0001863,2]
[333991858,1722666758673,-794.41,0.0001863,2]
[333991859,1722666758683,-500.0,0.0001863,2]
[333991860,1722666758692,-1111.45,0.0001863,2]
[333991861,1722666758703,-633.16,0.0001863,2]
[333991862,1722666758712,-500.0,0.0001863,2]
[333991863,1722666758722,-500.0,0.0001863,2]
[333991864,1722666758734,-742.79,0.0001863,2]
[333991865,1722666758744,-500.0,0.0001863,2]
[333991866,1722666758753,-500.0,0.0001863,2]
[333991867,1722666758763,-500.0,0.0001863,2]
[333991868,1722666758773,-500.41,0.0001863,2]
[333991869,1722666758783,-1144.59,0.0001863,2]
[333991870,1722666758792,-500.0,0.0001863,2]
[333991871,1722666758801,-591.2,0.0001863,2]
[333991872,1722666758811,-500.0,0.0001863,2]
[333991873,1722666758822,-500.0,0.0001863,2]
[333991874,1722666758832,-500.0,0.0001863,2]
[333991875,1722666758841,-500.0,0.0001863,2]
[333991876,1722666758850,-667.95,0.0001863,2]
[333991877,1722666758859,-500.0,0.0001863,2]
[333991878,1722666758868,-710.02,0.0001863,2]
[333991879,1722666758877,-1017.87,0.0001863,2]
[333991880,1722666758888,-586.31,0.0001863,2]
[333991881,1722666758899,-500.0,0.0001863,2]
[333991882,1722666758909,-1326.03,0.0001863,2]
[333991883,1722666758923,-628.24,0.0001863,2]
[333991884,1722666758932,-689.07,0.0001863,2]
[333991885,1722666758943,-500.0,0.0001863,2]
[333991886,1722666758952,-554.01,0.0001863,2]
[333991887,1722666758963,-500.0,0.0001863,2]
[333991888,1722666758973,-835.2,0.0001863,2]
[333991889,1722666758984,-500.0,0.0001863,2]
[333991890,1722666758994,-500.0,0.0001863,2]
[333991891,1722666759004,-541.45,0.0001863,2]
[333991892,1722666759014,-500.0,0.0001863,2]
[333991893,1722666759024,-500.0,0.0001863,2]
[333991894,1722666759034,-1060.7,0.0001863,2]
[333991895,1722666759044,-561.25,0.0001863,2]
[333991896,1722666759053,-573.22,0.0001863,2]
[333991897,1722666759063,-500.0,0.0001863,2]
[333991898,1722666759074,-500.0,0.0001863,2]
[333991899,1722666759084,-686.47,0.0001863,2]
[333991900,1722666759094,-536.51,0.0001863,2]
[333991901,1722666759105,-1223.77,0.0001863,2]
[333991902,1722666759114,-500.0,0.0001863,2]
[333991903,1722666759124,-500.0,0.0001863,2]
[333991904,1722666759135,-500.0,0.0001863,2]
[333991905,1722666759144,-500.0,0.0001863,2]
[333991906,1722666759155,-1013.66,0.0001863,2]
[333991907,1722666759164,-500.0,0.0001863,2]
[333991908,1722666759174,-581.73,0.0001863,2]
[333991909,1722666759184,-500.0,0.0001863,2]
[333991910,1722666759194,-500.0,0.0001863,2]
[333991911,1722666759204,-500.0,0.0001863,2]
[333991912,1722666759215,-521.59263138,0.0001863,2]
[333991913,1722666759225,-506.19251396,0.0001863,2]
[333991914,1722666759235,-818.75,0.0001863,2]
[333991915,1722666759245,-500.0,0.0001863,2]
[333991916,1722666759255,-500.0,0.0001863,2]
[333991917,1722666759265,-500.0,0.0001863,2]
[333991918,1722666759275,-508.75183153,0.0001863,2]
[333991919,1722666759285,-500.0,0.0001863,2]
[333991920,1722666759295,-500.0,0.0001863,2]
[333991921,1722666759304,-500.0,0.0001863,2]
[333991922,1722666759314,-500.0,0.0001863,2]
[333991923,1722666759323,-500.0,0.0001863,2]
[333991924,1722666759333,-500.0,0.0001863,2]
[333991925,1722666759342,-500.0,0.0001863,2]
[333991926,1722666759352,-899.56,0.0001863,2]
[333991927,1722666759361,-500.0,0.0001863,2]
[333991928,1722666759372,-500.0,0.0001863,2]
[333991929,1722666759382,-1080.66,0.0001863,2]
[333991930,1722666759392,-500.0,0.0001863,2]
[333991931,1722666759401,-500.0,0.0001863,2]
[333991932,1722666759410,-500.0,0.0001863,2]
[333991933,1722666759420,-543.24265978,0.0001863,2]
[333991934,1722666759429,-500.0,0.0001863,2]
[333991935,1722666759439,-713.4,0.0001863,2]
[333991936,1722666759448,-500.0,0.0001863,2]
[333991937,1722666759459,-513.0,0.0001863,2]
[333991938,1722666759468,-1040.19,0.0001863,2]
[333991939,1722666759478,-500.0,0.0001863,2]
[333991940,1722666759487,-992.68,0.0001863,2]
[333991941,1722666759497,-521.61,0.0001863,2]
[333991942,1722666759507,-577.74,0.0001863,2]
[333991943,1722666759517,-500.0,0.0001863,2]
[333991944,1722666759527,-500.0,0.0001863,2]
[333991945,1722666759537,-645.01,0.0001863,2]
[333991946,1722666759546,-500.0,0.0001863,2]
[333991947,1722666759556,-500.0,0.0001863,2]
[333991948,1722666759566,-775.07,0.0001863,2]
[333991949,1722666759575,-500.0,0.0001863,2]
[333991950,1722666759585,-500.0,0.0001863,2]
[333991951,1722666759595,-968.44,0.0001863,2]
[333991952,1722666759605,-500.0,0.0001863,2]
[333991953,1722666759615,-1060.45,0.0001863,2]
[333991954,1722666759624,-500.0,0.0001863,2]
[333991955,1722666759634,-925.11,0.0001863,2]
[333991956,1722666759644,-500.0,0.0001863,2]
[333991957,1722666759655,-889.34,0.0001863,2]
[333991958,1722666759666,-500.0,0.0001863,2]
[333991959,1722666759676,-500.0,0.0001863,2]
[333991960,1722666759685,-500.0,0.0001863,2]
[333991961,1722666759695,-593.73,0.0001863,2]
[333991962,1722666759706,-500.0,0.0001863,2]
[333991963,1722666759715,-500.0,0.0001863,2]
[333991964,1722666759725,-500.0,0.0001863,2]
[333991965,1722666759739,-500.0,0.0001863,2]
[333991966,1722666759750,-637.94,0.0001863,2]
[333991967,1722666759759,-1442.56,0.0001863,2]
[333991968,1722666759769,-720.84,0.0001863,2]
[333991969,1722666759778,-500.0,0.0001863,2]
[333991970,1722666759788,-997.26,0.0001863,2]
[333991971,1722666759797,-600.01,0.0001863,2]
[333991972,1722666759807,-959.37,0.0001863,2]
[333991973,1722666759816,-500.0,0.0001863,2]
[333991974,1722666759827,-590.48,0.0001863,2]
[333991975,1722666759836,-539.49,0.0001863,2]
[333991976,1722666759845,-1113.83,0.0001863,2]
[333991977,1722666759855,-500.0,0.0001863,2]
[333991978,1722666759864,-307.31514501,0.0001863,2]
[333991979,1722666759874,-663.54,0.0001863,2]
[333991980,1722666759884,-500.0,0.0001863,2]
[333991981,1722666759894,-668.52,0.0001863,2]
[333991982,1722666759903,-500.0,0.0001863,2]
[333991983,1722666759912,-1284.57,0.0001863,2]
[333991984,1722666759922,-500.0,0.0001863,2]
[333991985,1722666759932,-729.2,0.0001863,2]
[333991986,1722666759942,-500.0,0.0001863,2]
[333991987,1722666759952,-1148.49,0.0001863,2]
[333991988,1722666759961,-650.33,0.0001863,2]
[333991989,1722666759972,-527.89,0.0001863,2]
[333991990,1722666759981,-1657.53,0.0001863,2]
[333991991,1722666759992,-643.1,0.0001863,2]
[333991992,1722666760002,-691.5,0.0001863,2]
[333991993,1722666760012,-1385.68,0.0001863,2]
[333991994,1722666760022,-534.08,0.0001863,2]
[333991995,1722666760032,-500.0,0.0001863,2]
[333991996,1722666760042,-500.0,0.0001863,2]
[333991997,1722666760052,-923.84,0.0001863,2]
[333991998,1722666760062,-1314.98,0.0001863,2]
[333991999,1722666760072,-891.69,0.0001863,2]
[333992000,1722666760082,-1413.97,0.0001863,2]
[333992001,1722666760092,-518.53,0.0001863,2]
[333992002,1722666760101,-500.0,0.0001863,2]
[333992003,1722666760111,-1485.86,0.0001863,2]
[333992004,1722666760121,-679.92,0.0001863,2]
[333992005,1722666760131,-500.0,0.0001863,2]
[333992006,1722666760141,-500.0,0.0001863,2]
[333992007,1722666760150,-1833.06,0.0001863,2]
[333992008,1722666760160,-528.86,0.0001863,2]
[333992009,1722666760169,-1392.35,0.0001863,2]
[333992010,1722666760179,-557.98,0.0001863,2]
[333992011,1722666760189,-500.0,0.0001863,2]
[333992012,1722666760199,-500.0,0.0001863,2]
[333992013,1722666760209,-500.0,0.0001863,2]
[333992014,1722666760219,-1735.04,0.0001863,2]
[333992015,1722666760229,-1099.4,0.0001863,2]
[333992016,1722666760239,-500.0,0.0001863,2]
[333992017,1722666760249,-505.74,0.0001863,2]
[333992018,1722666760258,-516.73,0.0001863,2]
[333992019,1722666760267,-587.0,0.0001863,2]
[333992020,1722666760276,-866.45,0.0001863,2]
[333992021,1722666760287,-563.21,0.0001863,2]
[333992022,1722666760297,-540.15,0.0001863,2]
[333992023,1722666760306,-500.0,0.0001863,2]
[333992024,1722666760316,-500.0,0.0001863,2]
[333992025,1722666760325,-647.2,0.0001863,2]
[333992026,1722666760335,-500.0,0.0001863,2]
[333992027,1722666760345,-1057.56,0.0001863,2]
[333992028,1722666760355,-500.0,0.0001863,2]
[333992029,1722666760365,-554.21,0.0001863,2]
[333992030,1722666760375,-1267.48,0.0001863,2]
[333992031,1722666760384,-500.0,0.0001863,2]
[333992032,1722666760394,-500.0,0.0001863,2]
[333992033,1722666760404,-1285.81,0.0001863,2]
[333992034,1722666760414,-536.59621082,0.0001863,2]
[333992035,1722666760425,-1985.89,0.0001863,2]
[333992036,1722666760434,-500.0,0.0001863,2]
[333992037,1722666760444,-1048.81,0.0001863,2]
[333992038,1722666760454,-500.0,0.0001863,2]
[333992039,1722666760463,-770.94,0.0001863,2]
[333992040,1722666760473,-648.16,0.0001863,2]
[333992041,1722666760483,-1630.37,0.0001863,2]
[333992042,1722666760493,-500.0,0.0001863,2]
[333992043,1722666760503,-500.0,0.0001863,2]
[333992044,1722666760512,-942.02,0.0001863,2]
[333992045,1722666760522,-500.0,0.0001863,2]
[333992046,1722666760532,-500.0,0.0001863,2]
[333992047,1722666760542,-500.0,0.0001863,2]
[333992048,1722666760552,-702.76,0.0001863,2]
[333992049,1722666760562,-500.0,0.0001863,2]
[333992050,1722666760572,-500.0,0.0001863,2]
[333992051,1722666760582,-500.0,0.0001863,2]
[333992052,1722666760591,-1612.19,0.0001863,2]
[333992053,1722666760601,-500.0,0.0001863,2]
[333992054,1722666760610,-1146.11,0.0001863,2]
[333992055,1722666760619,-500.0,0.0001863,2]
[333992056,1722666760628,-764.88,0.0001863,2]
[333992057,1722666760638,-500.0,0.0001863,2]
[333992058,1722666760647,-1869.99,0.0001863,2]
[333992059,1722666760660,-500.0,0.0001863,2]
[333992060,1722666760669,-1937.58,0.0001863,2]
[333992061,1722666760679,-1092.19,0.0001863,2]
[333992062,1722666760688,-500.0,0.0001863,2]
[333992063,1722666760698,-1144.97,0.0001863,2]
[333992064,1722666760708,-1286.39,0.0001863,2]
[333992065,1722666760718,-500.0,0.0001863,2]
[333992066,1722666760727,-1257.28,0.0001863,2]
[333992067,1722666760739,-575.74,0.0001863,2]
[333992068,1722666760749,-500.0,0.0001863,2]
[333992069,1722666760759,-500.0,0.0001863,2]
[333992070,1722666760769,-790.36,0.0001863,2]
[333992071,1722666760778,-1056.65,0.0001863,2]
[333992072,1722666760788,-682.23,0.0001863,2]
[333992073,1722666760797,-500.0,0.0001863,2]
[333992074,1722666760807,-831.9,0.0001863,2]
[333992075,1722666760816,-1274.51,0.0001863,2]
[333992076,1722666760827,-971.42,0.0001863,2]
[333992077,1722666760836,-1312.76,0.0001863,2]
[333992078,1722666760845,-500.0,0.0001863,2]
[333992079,1722666760854,-500.0,0.0001863,2]
[333992080,1722666760864,-500.0,0.0001863,2]
[333992081,1722666760873,-500.0,0.0001863,2]
[333992082,1722666760883,-500.0,0.0001863,2]
[333992083,1722666760892,-500.0,0.0001863,2]
[333992084,1722666760902,-1074.3,0.0001863,2]
[333992085,1722666760911,-500.0,0.0001863,2]
[333992086,1722666760920,-634.32,0.0001863,2]
[333992087,1722666760930,-564.14,0.0001863,2]
[333992088,1722666760939,-500.0,0.0001863,2]
[333992089,1722666760948,-786.52,0.0001863,2]
[333992090,1722666760958,-500.0,0.0001863,2]
[333992091,1722666760967,-500.0,0.0001863,2]
[333992092,1722666760976,-500.0,0.0001863,2]
[333992093,1722666760985,-500.0,0.0001863,2]
[333992094,1722666760996,-1029.12,0.0001863,2]
[333992095,1722666761006,-837.07,0.0001863,2]
[333992096,1722666761019,-500.0,0.0001863,2]
[333992097,1722666761028,-1796.88,0.0001863,2]
[333992098,1722666761037,-1732.55,0.0001863,2]
[333992099,1722666761046,-500.0,0.0001863,2]
[333992100,1722666761056,-500.0,0.0001863,2]
[333992101,1722666761065,-1573.42,0.0001863,2]
[333992102,1722666761074,-500.0,0.0001863,2]
[333992103,1722666761083,-854.91,0.0001863,2]
[333992104,1722666761093,-1076.12,0.0001863,2]
[333992105,1722666761102,-500.0,0.0001863,2]
[333992106,1722666761111,-500.0,0.0001863,2]
[333992107,1722666761121,-737.63,0.0001863,2]
[333992108,1722666761130,-1711.13,0.0001863,2]
[333992109,1722666761143,-500.0,0.0001863,2]
[333992110,1722666761152,-500.0,0.0001863,2]
[333992111,1722666761162,-500.0,0.0001863,2]
[333992112,1722666761171,-599.32,0.0001863,2]
[333992113,1722666761180,-319.41022192,0.0001863,2]
[333992114,1722666761190,-500.0,0.0001863,2]
[333992115,1722666761200,-1490.49,0.0001863,2]
[333992116,1722666761210,-686.99,0.0001863,2]
[333992117,1722666761219,-413.19857084,0.0001863,2]
[333992118,1722666761229,-941.41,0.0001863,2]
[333992119,1722666761241,-519.84700364,0.0001863,2]
[333992120,1722666761250,-574.58170719,0.0001863,2]
[333992121,1722666761260,-500.0,0.0001863,2]
[333992122,1722666761270,-683.87,0.0001863,2]
[333992123,1722666761279,-925.99,0.0001863,2]
[333992124,1722666761289,-500.0,0.0001863,2]
[333992125,1722666761298,-518.33,0.0001863,2]
[333992126,1722666761307,-1190.09,0.0001863,2]
[333992127,1722666761316,-500.0,0.0001863,2]
[333992128,1722666761327,-500.0,0.0001863,2]
[333992129,1722666761336,-500.0,0.0001863,2]
[333992130,1722666761346,-775.59,0.0001863,2]
[333992131,1722666761355,-500.0,0.0001863,2]
[333992132,1722666761365,-850.78,0.0001863,2]
[333992133,1722666761375,-500.0,0.0001863,2]
[333992134,1722666761384,-1150.61,0.0001863,2]
[333992135,1722666761394,-500.0,0.0001863,2]
[333992136,1722666761403,-1249.02,0.0001863,2]
[333992137,1722666761413,-1183.94,0.0001863,2]
[333992138,1722666761424,-500.0,0.0001863,2]
[333992139,1722666761434,-500.0,0.0001863,2]
[333992140,1722666761444,-714.61,0.0001863,2]
[333992141,1722666761453,-500.0,0.0001863,2]
[333992142,1722666761463,-619.81,0.0001863,2]
[333992143,1722666761472,-1412.03,0.0001863,2]
[333992144,1722666761482,-557.22,0.0001863,2]
[333992145,1722666761492,-500.0,0.0001863,2]
[333992146,1722666761501,-500.0,0.0001863,2]
[333992147,1722666761511,-901.04,0.0001863,2]
[333992148,1722666761520,-1245.11,0.0001863,2]
[333992149,1722666761529,-1551.65,0.0001863,2]
[333992150,1722666761539,-829.01,0.0001863,2]
[333992151,1722666761548,-563.09,0.0001863,2]
[333992152,1722666761557,-523.94,0.0001863,2]
[333992153,1722666761567,-1086.27,0.0001863,2]
[333992154,1722666761577,-554.91,0.0001863,2]
[333992155,1722666761586,-500.0,0.0001863,2]
[333992156,1722666761596,-500.0,0.0001863,2]
[333992157,1722666761606,-500.0,0.0001863,2]
[333992158,1722666761616,-1346.52,0.0001863,2]
[333992159,1722666761625,-1087.56,0.0001863,2]
[333992160,1722666761635,-1404.5,0.0001863,2]
[333992161,1722666761644,-500.0,0.0001863,2]
[333992162,1722666761655,-500.0,0.0001863,2]
[333992163,1722666761669,-783.81,0.0001863,2]
[333992164,1722666761679,-500.0,0.0001863,2]
[333992165,1722666761688,-1999.59,0.0001863,2]
[333992166,1722666761699,-500.0,0.0001863,2]
[333992167,1722666761708,-669.89,0.0001863,2]
[333992168,1722666761719,-500.0,0.0001863,2]
[333992169,1722666761728,-500.0,0.0001863,2]
[333992170,1722666761741,-791.15,0.0001863,2]
[333992171,1722666761751,-1652.52,0.0001863,2]
[333992172,1722666761760,-936.75,0.0001863,2]
[333992173,1722666761770,-1126.33,0.0001863,2]
[333992174,1722666761779,-500.0,0.0001863,2]
[333992175,1722666761789,-500.0,0.0001863,2]
[333992176,1722666761799,-1115.3,0.0001863,2]
[333992177,1722666761809,-1818.33,0.0001863,2]
[333992178,1722666761818,-621.62,0.0001863,2]
[333992179,1722666761828,-500.0,0.0001863,2]
[333992180,1722666761837,-814.86,0.0001863,2]
[333992181,1722666761846,-500.0,0.0001863,2]
[333992182,1722666761855,-764.75,0.0001863,2]
[333992183,1722666761865,-500.0,0.0001863,2]
[333992184,1722666761874,-721.8,0.0001863,2]
[333992185,1722666761884,-500.0,0.0001863,2]
[333992186,1722666761893,-500.0,0.0001863,2]
[333992187,1722666761902,-1488.46,0.0001863,2]
[333992188,1722666761911,-225.95362737,0.0001863,2]
[333992189,1722666761920,-500.0,0.0001863,2]
[333992190,1722666761930,-500.0,0.0001863,2]
[333992191,1722666761939,-1556.25,0.0001863,2]
[333992192,1722666761948,-500.0,0.0001863,2]
[333992193,1722666761958,-500.0,0.0001863,2]
[333992194,1722666761967,-930.37,0.0001863,2]
[333992195,1722666761977,-1099.96,0.0001863,2]
[333992196,1722666761987,-541.23,0.0001863,2]
[333992197,1722666761997,-862.02,0.0001863,2]
[333992198,1722666762006,-782.39,0.0001863,2]
[333992199,1722666762016,-665.68,0.0001863,2]
[333992200,1722666762027,-500.0,0.0001863,2]
[333992201,1722666762036,-500.0,0.0001863,2]
[333992202,1722666762046,-500.0,0.0001863,2]
[333992203,1722666762055,-660.12,0.0001863,2]
[333992204,1722666762064,-708.64,0.0001863,2]
[333992205,1722666762074,-500.0,0.0001863,2]
[333992206,1722666762083,-709.52,0.0001863,2]
[333992207,1722666762092,-500.0,0.0001863,2]
[333992208,1722666762101,-510.64,0.0001863,2]
[333992209,1722666762110,-500.0,0.0001863,2]
[333992210,1722666762120,-681.92,0.0001863,2]
[333992211,1722666762130,-500.0,0.0001863,2]
[333992212,1722666762140,-500.0,0.0001863,2]
[333992213,1722666762149,-500.0,0.0001863,2]
[333992214,1722666762158,-1423.39,0.0001863,2]
[333992215,1722666762168,-500.0,0.0001863,2]
[333992216,1722666762177,-3672.91,0.0001863,2]
[333992217,1722666762186,-796.7,0.0001863,2]
[333992218,1722666762196,-500.0,0.0001863,2]
[333992219,1722666762206,-714.52,0.0001863,2]
[333992220,1722666762344,-2042.73,0.0001863,2]
[333992221,1722666762360,-500.0,0.0001863,2]
[333992222,1722666762370,-552.5,0.0001863,2]
[333992223,1722666762380,-1054.46,0.0001863,2]
[333992224,1722666762390,-500.0,0.0001863,2]
[333992225,1722666762399,-2805.89,0.0001863,2]
[333992226,1722666762409,-675.88,0.0001863,2]
[333992227,1722666762418,-1433.51,0.0001863,2]
[333992228,1722666762428,-1088.81,0.0001863,2]
[333992229,1722666762437,-500.0,0.0001863,2]
[333992230,1722666762447,-4007.83,0.0001863,2]
[333992231,1722666762457,-762.84,0.0001863,2]
[333992232,1722666762468,-3217.66,0.0001863,2]
[333992233,1722666762478,-500.0,0.0001863,2]
[333992234,1722666762488,-500.0,0.0001863,2]
[333992235,1722666762497,-2200.75,0.0001863,2]
[333992236,1722666762507,-951.76,0.0001863,2]
[333992237,1722666762518,-1702.58,0.0001863,2]
[333992238,1722666762527,-2092.77,0.0001863,2]
[333992239,1722666762537,-652.04,0.0001863,2]
[333992240,1722666762547,-500.0,0.0001863,2]
[333992241,1722666762557,-5244.42,0.0001863,2]
[333992242,1722666762568,-500.0,0.0001863,2]
[333992243,1722666762578,-693.09,0.0001863,2]
[333992244,1722666762588,-761.36,0.0001863,2]